[Event "Early-Titled-Tuesday-Blitz-May-14-2024"]
[Site "Chess.com"]
[Date "2024.05.14"]
[Round "9"]
[White "klercaku"]
[Black "maracayo"]
[Result "0-1"]
[WhiteElo "2249"]
[BlackElo "2359"]
[TimeControl "180+1"]
[EndTime "9:45:20 PDT"]
[Termination "maracayo won by resignation"]

1. e4 {[%clk 0:03:00.9]} 1... d6 {[%clk 0:02:59.6]} 2. d4 {[%clk 0:03:00.4]}
2... Nf6 {[%clk 0:02:58.6]} 3. Bd3 {[%clk 0:02:59.9]} 3... e5 {[%clk 0:02:57.6]}
4. dxe5 {[%clk 0:02:58.6]} 4... dxe5 {[%clk 0:02:57.3]} 5. Nc3 {[%clk
0:02:54.7]} 5... Be7 {[%clk 0:02:56.3]} 6. Nge2 {[%clk 0:02:55.1]} 6... O-O
{[%clk 0:02:55]} 7. O-O {[%clk 0:02:55.7]} 7... c6 {[%clk 0:02:53.8]} 8. h3
{[%clk 0:02:54.6]} 8... Nbd7 {[%clk 0:02:52]} 9. f4 {[%clk 0:02:54.5]} 9... Qc7
{[%clk 0:02:51.5]} 10. f5 {[%clk 0:02:48.1]} 10... b5 {[%clk 0:02:50]} 11. a3
{[%clk 0:02:45.4]} 11... a5 {[%clk 0:02:45.5]} 12. g4 {[%clk 0:02:45.2]} 12...
h6 {[%clk 0:02:44.6]} 13. Ng3 {[%clk 0:02:41.4]} 13... Bb7 {[%clk 0:02:30]} 14.
h4 {[%clk 0:02:39.2]} 14... Nh7 {[%clk 0:02:29]} 15. g5 {[%clk 0:02:35.4]} 15...
hxg5 {[%clk 0:02:28.6]} 16. hxg5 {[%clk 0:02:32]} 16... Bxg5 {[%clk 0:02:28.3]}
17. Bxg5 {[%clk 0:02:31.3]} 17... Nxg5 {[%clk 0:02:27.5]} 18. Qg4 {[%clk
0:02:31.9]} 18... f6 {[%clk 0:02:23.2]} 19. Kg2 {[%clk 0:02:25.9]} 19... Nc5
{[%clk 0:02:20.3]} 20. Qh5 {[%clk 0:02:22.6]} 20... Nxd3 {[%clk 0:02:17.9]} 21.
cxd3 {[%clk 0:02:20.8]} 21... Qf7 {[%clk 0:02:14.7]} 22. Qh4 {[%clk 0:02:15.1]}
22... Rfd8 {[%clk 0:02:03.8]} 23. Rh1 {[%clk 0:02:13.8]} 23... Qb3 {[%clk
0:02:03.6]} 24. Qh8+ {[%clk 0:01:08.3]} 24... Kf7 {[%clk 0:02:00.5]} 25. Qh5+
{[%clk 0:01:09.2]} 25... Ke7 {[%clk 0:01:59.8]} 26. Qe2 {[%clk 0:01:09.9]} 26...
b4 {[%clk 0:01:55.8]} 27. axb4 {[%clk 0:01:07.9]} 27... axb4 {[%clk 0:01:55.1]}
28. Rxa8 {[%clk 0:01:06.8]} 28... Bxa8 {[%clk 0:01:54.8]} 29. Nd1 {[%clk
0:01:03.2]} 29... Rxd3 {[%clk 0:01:47]} 30. Nh5 {[%clk 0:01:02.3]} 30... c5
{[%clk 0:01:46.6]} 31. Nxg7 {[%clk 0:00:58.1]} 31... Bxe4+ {[%clk 0:01:36.4]}
32. Kf2 {[%clk 0:00:53.6]} 32... Bxh1 {[%clk 0:01:27.8]} 33. Ne6 {[%clk
0:00:50.3]} 33... Nxe6 {[%clk 0:01:16.2]} 34. fxe6 {[%clk 0:00:49.9]} 34... Qxd1
{[%clk 0:01:07.1]} 0-1

[Event "Early-Titled-Tuesday-Blitz-May-14-2024"]
[Site "Chess.com"]
[Date "2024.05.14"]
[Round "9"]
[White "xasid81"]
[Black "monomita"]
[Result "1-0"]
[WhiteElo "2617"]
[BlackElo "2746"]
[TimeControl "180+1"]
[EndTime "9:45:24 PDT"]
[Termination "xasid81 won by resignation"]

1. Nf3 {[%clk 0:02:53.5]} 1... c5 {[%clk 0:03:00.1]} 2. Nc3 {[%clk 0:02:53.6]}
2... g6 {[%clk 0:03:00.3]} 3. e4 {[%clk 0:02:53.5]} 3... Bg7 {[%clk 0:03:00.6]}
4. Bc4 {[%clk 0:02:53]} 4... Nc6 {[%clk 0:03:00.5]} 5. a3 {[%clk 0:02:53.1]}
5... Nf6 {[%clk 0:03:00.9]} 6. d3 {[%clk 0:02:53.3]} 6... d6 {[%clk 0:03:01.1]}
7. h3 {[%clk 0:02:52.6]} 7... a6 {[%clk 0:03:01.4]} 8. O-O {[%clk 0:02:52.6]}
8... O-O {[%clk 0:03:01.9]} 9. Bf4 {[%clk 0:02:52.3]} 9... b5 {[%clk 0:03:02.3]}
10. Ba2 {[%clk 0:02:52.2]} 10... Bb7 {[%clk 0:03:03]} 11. Qd2 {[%clk 0:02:51.8]}
11... Nd4 {[%clk 0:03:01.4]} 12. Nxd4 {[%clk 0:02:50.7]} 12... cxd4 {[%clk
0:03:02.3]} 13. Ne2 {[%clk 0:02:50.8]} 13... Rc8 {[%clk 0:03:01.4]} 14. Rac1
{[%clk 0:02:44.8]} 14... d5 {[%clk 0:02:55.5]} 15. f3 {[%clk 0:02:24.6]} 15...
dxe4 {[%clk 0:02:51.7]} 16. fxe4 {[%clk 0:02:25.5]} 16... e5 {[%clk 0:02:50]}
17. Bxe5 {[%clk 0:02:02.4]} 17... Nxe4 {[%clk 0:02:50.3]} 18. Qf4 {[%clk
0:02:01.8]} 18... Bxe5 {[%clk 0:02:29.4]} 19. Bxf7+ {[%clk 0:01:26.8]} 19...
Rxf7 {[%clk 0:02:29.2]} 20. Qxf7+ {[%clk 0:01:25.6]} 20... Kh8 {[%clk
0:02:29.5]} 21. Qxb7 {[%clk 0:01:17.6]} 21... Nc5 {[%clk 0:02:20]} 22. Qf3
{[%clk 0:00:59.6]} 22... Qg5 {[%clk 0:02:20.1]} 23. Qg4 {[%clk 0:00:51.8]} 23...
Qxg4 {[%clk 0:02:15.7]} 24. hxg4 {[%clk 0:00:52.7]} 24... Na4 {[%clk 0:02:16.3]}
25. b3 {[%clk 0:00:48.6]} 25... Nc3 {[%clk 0:02:16.1]} 26. Nxc3 {[%clk
0:00:48.4]} 26... Rxc3 {[%clk 0:02:17]} 27. Rf7 {[%clk 0:00:37.3]} 27... Kg8
{[%clk 0:02:12.5]} 28. Ra7 {[%clk 0:00:30.1]} 28... Bf4 {[%clk 0:02:12.9]} 29.
Rf1 {[%clk 0:00:27.8]} 29... g5 {[%clk 0:01:59.9]} 30. g3 {[%clk 0:00:27.4]}
30... Be3+ {[%clk 0:01:57.1]} 31. Kh1 {[%clk 0:00:26.4]} 31... Rxc2 {[%clk
0:01:58]} 32. Rff7 {[%clk 0:00:23.2]} 32... Rc1+ {[%clk 0:01:58.3]} 33. Kg2
{[%clk 0:00:22.8]} 33... Rg1+ {[%clk 0:01:58.7]} 34. Kh2 {[%clk 0:00:22.8]}
34... Rd1 {[%clk 0:01:53.2]} 35. Rg7+ {[%clk 0:00:21.9]} 35... Kf8 {[%clk
0:01:47.3]} 36. Rgc7 {[%clk 0:00:20.5]} 36... Rd2+ {[%clk 0:01:40.4]} 37. Kh3
{[%clk 0:00:19.9]} 1-0

[Event "Early-Titled-Tuesday-Blitz-May-14-2024"]
[Site "Chess.com"]
[Date "2024.05.14"]
[Round "9"]
[White "jraosam"]
[Black "Eloist"]
[Result "1-0"]
[WhiteElo "2096"]
[BlackElo "2430"]
[TimeControl "180+1"]
[EndTime "9:45:25 PDT"]
[Termination "jraosam won on time"]

1. e4 {[%clk 0:03:00.9]} 1... e6 {[%clk 0:02:58.6]} 2. d4 {[%clk 0:03:00.4]}
2... d5 {[%clk 0:02:58.7]} 3. exd5 {[%clk 0:03:01.3]} 3... exd5 {[%clk
0:02:58.5]} 4. Bd3 {[%clk 0:03:01.5]} 4... Nc6 {[%clk 0:02:50.8]} 5. c3 {[%clk
0:03:01.1]} 5... Bd6 {[%clk 0:02:50]} 6. Ne2 {[%clk 0:03:01.3]} 6... Bg4 {[%clk
0:02:47.8]} 7. f3 {[%clk 0:03:00.8]} 7... Bh5 {[%clk 0:02:45.3]} 8. Bf4 {[%clk
0:03:00]} 8... Bg6 {[%clk 0:02:43.1]} 9. O-O {[%clk 0:02:58.8]} 9... Nge7 {[%clk
0:02:41.9]} 10. Na3 {[%clk 0:02:52.5]} 10... a6 {[%clk 0:02:37.3]} 11. Nc2
{[%clk 0:02:50.4]} 11... Qd7 {[%clk 0:02:36]} 12. Qd2 {[%clk 0:02:47.5]} 12...
O-O {[%clk 0:02:32.1]} 13. Rfe1 {[%clk 0:02:42.4]} 13... Rae8 {[%clk 0:02:25.9]}
14. Bxd6 {[%clk 0:02:41.4]} 14... Qxd6 {[%clk 0:02:25.6]} 15. Nf4 {[%clk
0:02:41.8]} 15... Bxd3 {[%clk 0:02:22.9]} 16. Nxd3 {[%clk 0:02:42.7]} 16... Nd8
{[%clk 0:02:11.2]} 17. Re2 {[%clk 0:02:35.6]} 17... Nf5 {[%clk 0:02:03.8]} 18.
Rae1 {[%clk 0:02:35.4]} 18... Rxe2 {[%clk 0:01:53.2]} 19. Rxe2 {[%clk
0:02:35.3]} 19... Ne6 {[%clk 0:01:49]} 20. Ne5 {[%clk 0:02:32.1]} 20... f6
{[%clk 0:01:45.8]} 21. Nd3 {[%clk 0:02:30.4]} 21... b6 {[%clk 0:01:43.7]} 22.
Ne3 {[%clk 0:02:27.6]} 22... Nh4 {[%clk 0:01:29.7]} 23. Qe1 {[%clk 0:02:23.7]}
23... Nf4 {[%clk 0:00:43]} 24. Nxf4 {[%clk 0:01:58.4]} 24... Qxf4 {[%clk
0:00:43.9]} 25. Nxd5 {[%clk 0:01:55.6]} 25... Qg5 {[%clk 0:00:43.8]} 26. Ne7+
{[%clk 0:01:55]} 26... Kf7 {[%clk 0:00:38.8]} 27. Qg3 {[%clk 0:01:51.9]} 27...
Re8 {[%clk 0:00:28.4]} 28. Qxc7 {[%clk 0:01:46.2]} 28... Nxf3+ {[%clk
0:00:16.6]} 29. Kf2 {[%clk 0:01:41.8]} 1-0

[Event "Early-Titled-Tuesday-Blitz-May-14-2024"]
[Site "Chess.com"]
[Date "2024.05.14"]
[Round "9"]
[White "Nasrin_Babayeva"]
[Black "elcala"]
[Result "0-1"]
[WhiteElo "1959"]
[BlackElo "1947"]
[TimeControl "180+1"]
[EndTime "9:45:29 PDT"]
[Termination "elcala won by checkmate"]

1. d4 {[%clk 0:03:00.9]} 1... d5 {[%clk 0:02:59.8]} 2. c4 {[%clk 0:03:00.1]}
2... c6 {[%clk 0:02:57.4]} 3. e3 {[%clk 0:02:56.4]} 3... Nf6 {[%clk 0:02:56.3]}
4. Nf3 {[%clk 0:02:57]} 4... g6 {[%clk 0:02:49.2]} 5. Nc3 {[%clk 0:02:57.5]}
5... Bg7 {[%clk 0:02:48.7]} 6. b3 {[%clk 0:02:58.4]} 6... O-O {[%clk 0:02:48.1]}
7. Bd3 {[%clk 0:02:58.6]} 7... Re8 {[%clk 0:02:40.3]} 8. O-O {[%clk 0:02:58.9]}
8... Bf5 {[%clk 0:02:36.2]} 9. Bxf5 {[%clk 0:02:55.9]} 9... gxf5 {[%clk
0:02:35.5]} 10. Ne5 {[%clk 0:02:54.8]} 10... e6 {[%clk 0:02:30]} 11. Bb2 {[%clk
0:02:46.3]} 11... Nbd7 {[%clk 0:02:28.1]} 12. Nxd7 {[%clk 0:02:32.6]} 12... Nxd7
{[%clk 0:02:20.6]} 13. f4 {[%clk 0:02:30.2]} 13... a6 {[%clk 0:02:09.8]} 14. Rf3
{[%clk 0:02:29.8]} 14... Kh8 {[%clk 0:02:03.5]} 15. Rh3 {[%clk 0:02:29.6]} 15...
Nf6 {[%clk 0:01:56.8]} 16. Ne2 {[%clk 0:02:23.4]} 16... Ng4 {[%clk 0:01:53.2]}
17. Ng3 {[%clk 0:02:12.9]} 17... Qf6 {[%clk 0:01:36.4]} 18. Nh5 {[%clk
0:02:11.5]} 18... Qg6 {[%clk 0:01:36.5]} 19. Qf3 {[%clk 0:01:58.4]} 19... Rg8
{[%clk 0:01:09.4]} 20. Nxg7 {[%clk 0:01:55.1]} 20... Rxg7 {[%clk 0:01:04.9]} 21.
Rg3 {[%clk 0:01:53.8]} 21... Qf6 {[%clk 0:00:59.6]} 22. Ba3 {[%clk 0:01:46]}
22... Rag8 {[%clk 0:00:54.1]} 23. h3 {[%clk 0:01:33.1]} 23... Nh6 {[%clk
0:00:51.6]} 24. Rxg7 {[%clk 0:01:29.6]} 24... Qxg7 {[%clk 0:00:49.3]} 25. Bd6
{[%clk 0:01:19.2]} 25... f6 {[%clk 0:00:46.2]} 26. a4 {[%clk 0:01:05.7]} 26...
Nf7 {[%clk 0:00:45.3]} 27. Bc5 {[%clk 0:01:02.4]} 27... e5 {[%clk 0:00:40.7]}
28. fxe5 {[%clk 0:00:58]} 28... fxe5 {[%clk 0:00:39.9]} 29. Qxf5 {[%clk
0:00:56.4]} 29... Qxg2# {[%clk 0:00:38.8]} 0-1

[Event "Early-Titled-Tuesday-Blitz-May-14-2024"]
[Site "Chess.com"]
[Date "2024.05.14"]
[Round "9"]
[White "youngdinousaur"]
[Black "VirtualCoach"]
[Result "0-1"]
[WhiteElo "2361"]
[BlackElo "2214"]
[TimeControl "180+1"]
[EndTime "9:45:30 PDT"]
[Termination "VirtualCoach won by resignation"]

1. d4 {[%clk 0:03:00.9]} 1... Nf6 {[%clk 0:02:59.7]} 2. Bg5 {[%clk 0:02:59.9]}
2... d5 {[%clk 0:02:53.7]} 3. e3 {[%clk 0:02:58.1]} 3... e6 {[%clk 0:02:53.3]}
4. Bd3 {[%clk 0:02:55.9]} 4... Be7 {[%clk 0:02:52.5]} 5. c3 {[%clk 0:02:55.9]}
5... Nbd7 {[%clk 0:02:51.5]} 6. f4 {[%clk 0:02:56]} 6... c5 {[%clk 0:02:50]} 7.
Nf3 {[%clk 0:02:54.1]} 7... h6 {[%clk 0:02:49.5]} 8. Bh4 {[%clk 0:02:53.8]} 8...
b6 {[%clk 0:02:49.4]} 9. Nbd2 {[%clk 0:02:53]} 9... Bb7 {[%clk 0:02:49.6]} 10.
O-O {[%clk 0:02:49.9]} 10... Rc8 {[%clk 0:02:49.4]} 11. Ne5 {[%clk 0:02:49.6]}
11... Qc7 {[%clk 0:02:34.9]} 12. Qf3 {[%clk 0:02:15.5]} 12... Bd6 {[%clk
0:02:26]} 13. Qg3 {[%clk 0:02:07.5]} 13... Rg8 {[%clk 0:02:12.3]} 14. Rae1
{[%clk 0:01:33.6]} 14... g5 {[%clk 0:02:09.5]} 15. fxg5 {[%clk 0:01:24.3]} 15...
hxg5 {[%clk 0:02:10.4]} 16. Bxg5 {[%clk 0:01:20.1]} 16... Nxe5 {[%clk
0:02:04.7]} 17. dxe5 {[%clk 0:00:34.7]} 17... Bxe5 {[%clk 0:02:03.1]} 18. Qh4
{[%clk 0:00:32.3]} 18... Bxh2+ {[%clk 0:01:35.4]} 19. Qxh2 {[%clk 0:00:33.2]}
19... Qxh2+ {[%clk 0:01:34.5]} 20. Kxh2 {[%clk 0:00:34.1]} 20... Ng4+ {[%clk
0:01:34.6]} 21. Kg3 {[%clk 0:00:28.3]} 21... Rxg5 {[%clk 0:01:34.7]} 22. Kf4
{[%clk 0:00:22.5]} 22... Rg8 {[%clk 0:01:32.5]} 23. Bb5+ {[%clk 0:00:20.4]}
23... Ke7 {[%clk 0:01:31.9]} 24. Be2 {[%clk 0:00:19.8]} 24... Nf6 {[%clk
0:01:30.3]} 25. Rh1 {[%clk 0:00:18.7]} 25... Rxg2 {[%clk 0:01:20.6]} 26. Bf3
{[%clk 0:00:12.5]} 26... Rxd2 {[%clk 0:01:18.9]} 0-1

[Event "Early-Titled-Tuesday-Blitz-May-14-2024"]
[Site "Chess.com"]
[Date "2024.05.14"]
[Round "9"]
[White "NovoselovRoman"]
[Black "malakismayil"]
[Result "1-0"]
[WhiteElo "2659"]
[BlackElo "2534"]
[TimeControl "180+1"]
[EndTime "9:45:35 PDT"]
[Termination "NovoselovRoman won by checkmate"]

1. d4 {[%clk 0:03:00.9]} 1... d5 {[%clk 0:02:59.1]} 2. Nf3 {[%clk 0:02:59.7]}
2... Nf6 {[%clk 0:02:57.9]} 3. Bf4 {[%clk 0:02:59]} 3... e6 {[%clk 0:02:58.4]}
4. e3 {[%clk 0:02:58.2]} 4... Be7 {[%clk 0:02:57.2]} 5. Nbd2 {[%clk 0:02:57.6]}
5... O-O {[%clk 0:02:57.9]} 6. Bd3 {[%clk 0:02:57.9]} 6... c5 {[%clk 0:02:58.5]}
7. c3 {[%clk 0:02:58.3]} 7... Nc6 {[%clk 0:02:56.8]} 8. Ne5 {[%clk 0:02:57.8]}
8... Nxe5 {[%clk 0:02:54.5]} 9. dxe5 {[%clk 0:02:57.8]} 9... Nd7 {[%clk
0:02:54.3]} 10. Qh5 {[%clk 0:02:55.9]} 10... f5 {[%clk 0:02:53.9]} 11. g4 {[%clk
0:02:47]} 11... c4 {[%clk 0:02:45.4]} 12. Bc2 {[%clk 0:02:44.7]} 12... Nc5
{[%clk 0:02:46.1]} 13. gxf5 {[%clk 0:02:30.6]} 13... exf5 {[%clk 0:02:47]} 14.
Rg1 {[%clk 0:02:31]} 14... Kh8 {[%clk 0:02:37.4]} 15. Nf3 {[%clk 0:02:27.9]}
15... Be6 {[%clk 0:02:25.9]} 16. Nd4 {[%clk 0:02:23.2]} 16... Qe8 {[%clk
0:02:15.3]} 17. Qh3 {[%clk 0:02:14.9]} 17... Qf7 {[%clk 0:02:12.4]} 18. O-O-O
{[%clk 0:02:07.9]} 18... b5 {[%clk 0:01:54]} 19. Rg2 {[%clk 0:01:48.1]} 19... b4
{[%clk 0:01:35.3]} 20. Rdg1 {[%clk 0:01:28.3]} 20... bxc3 {[%clk 0:01:18.2]} 21.
Rxg7 {[%clk 0:01:12.2]} 21... Qxg7 {[%clk 0:01:11.9]} 22. Rxg7 {[%clk
0:01:12.2]} 22... Kxg7 {[%clk 0:01:12.8]} 23. Qh6+ {[%clk 0:00:40.4]} 23... Kf7
{[%clk 0:01:11.9]} 24. Nxe6 {[%clk 0:00:31.5]} 24... Nxe6 {[%clk 0:01:12.8]} 25.
Bxf5 {[%clk 0:00:30.8]} 25... Nxf4 {[%clk 0:01:12.2]} 26. exf4 {[%clk
0:00:30.8]} 26... Rab8 {[%clk 0:00:59]} 27. Qh5+ {[%clk 0:00:25.2]} 27... Kg7
{[%clk 0:00:58.1]} 28. Qxh7# {[%clk 0:00:25.3]} 1-0

[Event "Early-Titled-Tuesday-Blitz-May-14-2024"]
[Site "Chess.com"]
[Date "2024.05.14"]
[Round "9"]
[White "Legendinunknown"]
[Black "MalyDominator"]
[Result "1-0"]
[WhiteElo "2827"]
[BlackElo "2644"]
[TimeControl "180+1"]
[EndTime "9:45:38 PDT"]
[Termination "Legendinunknown won by checkmate"]

1. c4 {[%clk 0:02:55.8]} 1... e6 {[%clk 0:02:56.3]} 2. Nc3 {[%clk 0:02:55.9]}
2... d5 {[%clk 0:02:53.5]} 3. d4 {[%clk 0:02:54.8]} 3... Nf6 {[%clk 0:02:53.3]}
4. cxd5 {[%clk 0:02:54.2]} 4... Nxd5 {[%clk 0:02:52.5]} 5. e4 {[%clk 0:02:54.2]}
5... Nxc3 {[%clk 0:02:51.8]} 6. bxc3 {[%clk 0:02:55.1]} 6... c5 {[%clk
0:02:52.3]} 7. Rb1 {[%clk 0:02:55.7]} 7... cxd4 {[%clk 0:02:41.4]} 8. cxd4
{[%clk 0:02:56.6]} 8... Nc6 {[%clk 0:02:41.9]} 9. Nf3 {[%clk 0:02:56.3]} 9...
Bb4+ {[%clk 0:02:41]} 10. Bd2 {[%clk 0:02:56.6]} 10... Bxd2+ {[%clk 0:02:41.3]}
11. Qxd2 {[%clk 0:02:57.5]} 11... O-O {[%clk 0:02:41.5]} 12. Be2 {[%clk
0:02:57.4]} 12... Ne7 {[%clk 0:02:41.3]} 13. O-O {[%clk 0:02:57.4]} 13... b6
{[%clk 0:02:41.4]} 14. Ne5 {[%clk 0:02:56.5]} 14... Bb7 {[%clk 0:02:40.3]} 15.
Qe3 {[%clk 0:02:56.8]} 15... Ng6 {[%clk 0:02:40.3]} 16. Nxg6 {[%clk 0:02:55.8]}
16... hxg6 {[%clk 0:02:39.4]} 17. Rfd1 {[%clk 0:02:56.5]} 17... Rc8 {[%clk
0:02:38]} 18. Bf3 {[%clk 0:02:56.8]} 18... Qc7 {[%clk 0:02:33]} 19. h4 {[%clk
0:02:53.7]} 19... Qc2 {[%clk 0:02:23.9]} 20. Rbc1 {[%clk 0:02:45]} 20... Qxa2
{[%clk 0:02:22]} 21. Ra1 {[%clk 0:02:44.9]} 21... Qc2 {[%clk 0:02:19.5]} 22.
Rxa7 {[%clk 0:02:44.7]} 22... Qc7 {[%clk 0:02:13.2]} 23. e5 {[%clk 0:02:33.4]}
23... Rb8 {[%clk 0:02:12.3]} 24. Rc1 {[%clk 0:02:31.8]} 24... Qe7 {[%clk
0:02:01.6]} 25. Rb1 {[%clk 0:02:29.4]} 25... Rfc8 {[%clk 0:01:36.8]} 26. Rxb6
{[%clk 0:02:21.8]} 26... Rc7 {[%clk 0:01:32.6]} 27. g3 {[%clk 0:02:12.7]} 27...
Bxf3 {[%clk 0:01:11.2]} 28. Rxb8+ {[%clk 0:02:11]} 28... Kh7 {[%clk 0:01:11.8]}
29. Rxc7 {[%clk 0:02:06.4]} 29... Qxc7 {[%clk 0:01:11.4]} 30. Rb1 {[%clk
0:02:07]} 30... Ba8 {[%clk 0:01:09.6]} 31. Kh2 {[%clk 0:02:05.6]} 31... Qc6
{[%clk 0:01:06.1]} 32. Rg1 {[%clk 0:02:02.5]} 32... Qd5 {[%clk 0:01:02.2]} 33.
g4 {[%clk 0:02:02.5]} 33... Bc6 {[%clk 0:00:58.2]} 34. Kg3 {[%clk 0:02:02.3]}
34... Kg8 {[%clk 0:00:52.9]} 35. f3 {[%clk 0:02:02.3]} 35... Bb7 {[%clk
0:00:52.1]} 36. Rc1 {[%clk 0:02:02]} 36... Bc6 {[%clk 0:00:52]} 37. Rc5 {[%clk
0:02:01.9]} 37... Qd7 {[%clk 0:00:51.1]} 38. Qc3 {[%clk 0:02:02]} 38... Bd5
{[%clk 0:00:51.5]} 39. Rc8+ {[%clk 0:02:00.3]} 39... Kh7 {[%clk 0:00:51.2]} 40.
h5 {[%clk 0:02:00.9]} 40... gxh5 {[%clk 0:00:44.4]} 41. gxh5 {[%clk 0:02:01.8]}
41... Qe7 {[%clk 0:00:27.3]} 42. Qc2+ {[%clk 0:01:59.5]} 42... g6 {[%clk
0:00:27.6]} 43. hxg6+ {[%clk 0:02:00.4]} 43... Kg7 {[%clk 0:00:28.1]} 44. Qd2
{[%clk 0:01:51]} 44... Qa3 {[%clk 0:00:25.9]} 45. Qf4 {[%clk 0:01:48]} 45...
fxg6 {[%clk 0:00:21.7]} 46. Qf6+ {[%clk 0:01:45.8]} 46... Kh7 {[%clk 0:00:20.4]}
47. Rh8# {[%clk 0:01:46.7]} 1-0

[Event "Early-Titled-Tuesday-Blitz-May-14-2024"]
[Site "Chess.com"]
[Date "2024.05.14"]
[Round "9"]
[White "ChessQueen"]
[Black "bazar-wokzal"]
[Result "1-0"]
[WhiteElo "2779"]
[BlackElo "2611"]
[TimeControl "180+1"]
[EndTime "9:45:41 PDT"]
[Termination "ChessQueen won by resignation"]

1. e4 {[%clk 0:03:00.9]} 1... Nc6 {[%clk 0:02:59.3]} 2. Nf3 {[%clk 0:03:00.4]}
2... d5 {[%clk 0:02:59.2]} 3. exd5 {[%clk 0:03:00.2]} 3... Qxd5 {[%clk
0:02:59.4]} 4. Nc3 {[%clk 0:03:00.5]} 4... Qa5 {[%clk 0:02:59.6]} 5. d4 {[%clk
0:02:57.6]} 5... Bg4 {[%clk 0:02:59.6]} 6. Bb5 {[%clk 0:02:50.1]} 6... O-O-O
{[%clk 0:02:58.7]} 7. Bxc6 {[%clk 0:02:46.1]} 7... bxc6 {[%clk 0:02:59.6]} 8. h3
{[%clk 0:02:42.5]} 8... Qh5 {[%clk 0:02:58.2]} 9. Qe2 {[%clk 0:02:31.6]} 9...
Bxf3 {[%clk 0:02:57.4]} 10. gxf3 {[%clk 0:02:31.1]} 10... e6 {[%clk 0:02:57.4]}
11. Bd2 {[%clk 0:02:21.4]} 11... Bb4 {[%clk 0:02:46.1]} 12. O-O-O {[%clk
0:02:18.9]} 12... Bxc3 {[%clk 0:02:42.7]} 13. Bxc3 {[%clk 0:02:17]} 13... Ne7
{[%clk 0:02:43.1]} 14. Qa6+ {[%clk 0:02:03.9]} 14... Kd7 {[%clk 0:02:42.7]} 15.
Rd3 {[%clk 0:01:52.5]} 15... Qb5 {[%clk 0:02:38.7]} 16. Qa3 {[%clk 0:01:50]}
16... Nd5 {[%clk 0:02:33.2]} 17. Bd2 {[%clk 0:01:49.8]} 17... Rb8 {[%clk
0:02:16.8]} 18. b3 {[%clk 0:01:49.9]} 18... Ne7 {[%clk 0:01:59.2]} 19. Bf4
{[%clk 0:01:42.5]} 19... Rb7 {[%clk 0:01:43.2]} 20. h4 {[%clk 0:01:25.5]} 20...
a5 {[%clk 0:01:37.8]} 21. Re1 {[%clk 0:01:23.2]} 21... Ng6 {[%clk 0:01:27]} 22.
Bd2 {[%clk 0:01:21]} 22... Ra8 {[%clk 0:01:22.5]} 23. c4 {[%clk 0:01:14.1]}
23... Qf5 {[%clk 0:01:20.9]} 24. Re4 {[%clk 0:01:10]} 24... Nxh4 {[%clk
0:01:06.2]} 25. d5 {[%clk 0:01:10.5]} 25... cxd5 {[%clk 0:01:01.2]} 26. cxd5
{[%clk 0:01:10.4]} 26... exd5 {[%clk 0:00:51.2]} 27. Qe7+ {[%clk 0:01:04]} 27...
Kc6 {[%clk 0:00:51.3]} 28. Rc3+ {[%clk 0:01:04.2]} 28... Kb5 {[%clk 0:00:37]}
29. Qc5+ {[%clk 0:00:54.3]} 29... Ka6 {[%clk 0:00:36.7]} 30. Qc6+ {[%clk
0:00:53]} 30... Ka7 {[%clk 0:00:35.2]} 31. Be3+ {[%clk 0:00:52.8]} 31... Kb8
{[%clk 0:00:35]} 32. Re8+ {[%clk 0:00:52.2]} 1-0

[Event "Early-Titled-Tuesday-Blitz-May-14-2024"]
[Site "Chess.com"]
[Date "2024.05.14"]
[Round "9"]
[White "Crazy_girl99"]
[Black "Kotofeyca"]
[Result "1-0"]
[WhiteElo "2638"]
[BlackElo "2504"]
[TimeControl "180+1"]
[EndTime "9:45:45 PDT"]
[Termination "Crazy_girl99 won on time"]

1. e4 {[%clk 0:02:59.3]} 1... c5 {[%clk 0:02:59.3]} 2. Nf3 {[%clk 0:02:59.5]}
2... d6 {[%clk 0:02:59.3]} 3. d4 {[%clk 0:02:58.4]} 3... cxd4 {[%clk 0:03:00.2]}
4. Nxd4 {[%clk 0:02:58.8]} 4... Nf6 {[%clk 0:03:00.8]} 5. Nc3 {[%clk 0:02:59]}
5... a6 {[%clk 0:03:01.3]} 6. h3 {[%clk 0:02:56.4]} 6... b5 {[%clk 0:03:00.7]}
7. a3 {[%clk 0:02:54.5]} 7... Bb7 {[%clk 0:03:00.7]} 8. Bd3 {[%clk 0:02:54.8]}
8... e6 {[%clk 0:02:57.5]} 9. Be3 {[%clk 0:02:54]} 9... Be7 {[%clk 0:02:57.7]}
10. O-O {[%clk 0:02:54.1]} 10... Nc6 {[%clk 0:02:52.8]} 11. Nde2 {[%clk
0:02:45.2]} 11... d5 {[%clk 0:02:34.8]} 12. exd5 {[%clk 0:02:45.1]} 12... Nxd5
{[%clk 0:02:34.3]} 13. Nxd5 {[%clk 0:02:45.5]} 13... Qxd5 {[%clk 0:02:30.1]} 14.
Nf4 {[%clk 0:02:45.2]} 14... Qd8 {[%clk 0:02:03.9]} 15. Qg4 {[%clk 0:02:43.1]}
15... Ne5 {[%clk 0:01:43.1]} 16. Qxg7 {[%clk 0:02:27.6]} 16... Bf6 {[%clk
0:01:43.2]} 17. Qh6 {[%clk 0:02:27]} 17... Nxd3 {[%clk 0:01:36.4]} 18. cxd3
{[%clk 0:02:21.9]} 18... Bxb2 {[%clk 0:01:15.5]} 19. Rab1 {[%clk 0:02:15.8]}
19... Qf6 {[%clk 0:01:14]} 20. Qh5 {[%clk 0:02:02.1]} 20... Bxa3 {[%clk
0:01:00.3]} 21. Rxb5 {[%clk 0:01:44.6]} 21... Bxg2 {[%clk 0:00:36.8]} 22. Rb6
{[%clk 0:01:29]} 22... Rg8 {[%clk 0:00:23.5]} 23. Nxg2 {[%clk 0:01:27.9]} 23...
Rd8 {[%clk 0:00:10.3]} 24. Kh1 {[%clk 0:01:17.6]} 24... Rd5 {[%clk 0:00:08]} 25.
Qh4 {[%clk 0:01:07.8]} 25... Qg6 {[%clk 0:00:05.4]} 26. Nf4 {[%clk 0:01:04.3]}
1-0